[Event "*** SCC Grand Prix: Titled Tuesday Blitz"]
[Site "Chess.com"]
[Date "2020.09.08"]
[Round "5"]
[White "Hasangatin_Ramil"]
[Black "Chessdemon2019"]
[Result "1-0"]
[WhiteElo "2589"]
[BlackElo "2392"]
[TimeControl "180+1"]
[EndTime "10:57:49 PDT"]
[Termination "Hasangatin_Ramil won by checkmate"]

1. e4 {[%clk 0:03:00.9]} 1... c5 {[%clk 0:02:58.4]} 2. Nf3 {[%clk 0:03:00.4]}
2... d6 {[%clk 0:02:58.7]} 3. d4 {[%clk 0:02:59.5]} 3... cxd4 {[%clk 0:02:59.6]}
4. Qxd4 {[%clk 0:02:58.8]} 4... Nc6 {[%clk 0:02:56.6]} 5. Bb5 {[%clk 0:02:58]}
5... Qa5+ {[%clk 0:02:56.9]} 6. Nc3 {[%clk 0:02:57.4]} 6... Qxb5 {[%clk
0:02:57.2]} 7. Nxb5 {[%clk 0:02:58.3]} 7... Nxd4 {[%clk 0:02:57.3]} 8. Nfxd4
{[%clk 0:02:58.9]} 8... Kd8 {[%clk 0:02:55.3]} 9. c4 {[%clk 0:02:58.5]} 9... Nf6
{[%clk 0:02:53.8]} 10. f3 {[%clk 0:02:57.7]} 10... a6 {[%clk 0:02:53.7]} 11. Nc3
{[%clk 0:02:56.9]} 11... g6 {[%clk 0:02:53.9]} 12. Be3 {[%clk 0:02:56.8]} 12...
Bg7 {[%clk 0:02:53.8]} 13. O-O {[%clk 0:02:53.1]} 13... Kc7 {[%clk 0:02:53.8]}
14. Rac1 {[%clk 0:02:51.5]} 14... Bd7 {[%clk 0:02:53.2]} 15. Nc2 {[%clk
0:02:31.7]} 15... Rac8 {[%clk 0:02:50.7]} 16. Nb4 {[%clk 0:02:30.6]} 16... Kb8
{[%clk 0:02:49.9]} 17. b3 {[%clk 0:02:31]} 17... Be6 {[%clk 0:02:42.1]} 18. Rc2
{[%clk 0:02:25.6]} 18... Nd7 {[%clk 0:02:39.2]} 19. Rfc1 {[%clk 0:02:24.7]}
19... Nc5 {[%clk 0:02:36.4]} 20. Nbd5 {[%clk 0:02:07.2]} 20... Bxd5 {[%clk
0:02:23.1]} 21. Nxd5 {[%clk 0:02:08.1]} 21... e6 {[%clk 0:02:23.3]} 22. Nb4
{[%clk 0:02:01.8]} 22... a5 {[%clk 0:02:17.2]} 23. Bxc5 {[%clk 0:01:55]} 23...
dxc5 {[%clk 0:02:17.2]} 24. Nd3 {[%clk 0:01:55.3]} 24... Rhd8 {[%clk 0:02:16.9]}
25. Nf2 {[%clk 0:01:50]} 25... Rd7 {[%clk 0:02:14.7]} 26. Kf1 {[%clk 0:01:48.9]}
26... Rcd8 {[%clk 0:02:14.5]} 27. Ke2 {[%clk 0:01:49.3]} 27... Bh6 {[%clk
0:02:14.5]} 28. Rd1 {[%clk 0:01:48.4]} 28... Kc7 {[%clk 0:02:10]} 29. Rxd7+
{[%clk 0:01:45]} 29... Rxd7 {[%clk 0:02:10.1]} 30. Nd3 {[%clk 0:01:45.5]} 30...
b6 {[%clk 0:02:09.5]} 31. Ne5 {[%clk 0:01:44.2]} 31... Re7 {[%clk 0:02:09.1]}
32. g3 {[%clk 0:01:33.4]} 32... Bg7 {[%clk 0:02:07.6]} 33. Nd3 {[%clk
0:01:30.3]} 33... Rd7 {[%clk 0:02:06]} 34. f4 {[%clk 0:01:28.1]} 34... f5 {[%clk
0:02:03.5]} 35. e5 {[%clk 0:01:27.9]} 35... h6 {[%clk 0:02:03.4]} 36. h4 {[%clk
0:01:21]} 36... Kc6 {[%clk 0:02:01.3]} 37. Ne1 {[%clk 0:01:21.1]} 37... g5
{[%clk 0:02:00.5]} 38. hxg5 {[%clk 0:01:14.5]} 38... hxg5 {[%clk 0:02:00.6]} 39.
Nd3 {[%clk 0:01:11.6]} 39... gxf4 {[%clk 0:02:00.4]} 40. gxf4 {[%clk 0:01:11.1]}
40... Bh6 {[%clk 0:01:59.9]} 41. Ke3 {[%clk 0:01:06.8]} 41... Rg7 {[%clk
0:01:59.1]} 42. Rh2 {[%clk 0:01:06]} 42... Rg3+ {[%clk 0:01:59]} 43. Kf2 {[%clk
0:01:01.2]} 43... Rxd3 {[%clk 0:01:55.7]} 44. Rxh6 {[%clk 0:01:01.5]} 44... Rd2+
{[%clk 0:01:56.3]} 45. Ke3 {[%clk 0:01:01.4]} 45... Rxa2 {[%clk 0:01:56.5]} 46.
Rxe6+ {[%clk 0:01:01.9]} 46... Kc7 {[%clk 0:01:57]} 47. Rf6 {[%clk 0:00:58.3]}
47... Rb2 {[%clk 0:01:57.2]} 48. Rxf5 {[%clk 0:00:58.8]} 48... Rxb3+ {[%clk
0:01:57.6]} 49. Ke4 {[%clk 0:00:59.3]} 49... a4 {[%clk 0:01:57.9]} 50. Rf7+
{[%clk 0:00:57.5]} 50... Kd8 {[%clk 0:01:57.6]} 51. Ra7 {[%clk 0:00:57.3]} 51...
a3 {[%clk 0:01:57]} 52. f5 {[%clk 0:00:55.4]} 52... Rb4 {[%clk 0:01:55.2]} 53.
Kd5 {[%clk 0:00:54.8]} 53... b5 {[%clk 0:01:50]} 54. Kd6 {[%clk 0:00:54.8]}
54... Kc8 {[%clk 0:01:46]} 55. cxb5 {[%clk 0:00:53.7]} 55... Rxb5 {[%clk
0:01:44.4]} 56. Rxa3 {[%clk 0:00:52.5]} 56... c4 {[%clk 0:01:44.9]} 57. Rc3
{[%clk 0:00:48.4]} 57... Rb4 {[%clk 0:01:44.9]} 58. Kc5 {[%clk 0:00:44.1]} 58...
Rb1 {[%clk 0:01:45]} 59. Rxc4 {[%clk 0:00:42.9]} 59... Kd7 {[%clk 0:01:43.9]}
60. Kd5 {[%clk 0:00:40.2]} 60... Rd1+ {[%clk 0:01:43.7]} 61. Rd4 {[%clk
0:00:40.4]} 61... Rf1 {[%clk 0:01:42.3]} 62. e6+ {[%clk 0:00:38.3]} 62... Ke7
{[%clk 0:01:42.3]} 63. Ke5 {[%clk 0:00:38.7]} 63... Re1+ {[%clk 0:01:42.1]} 64.
Re4 {[%clk 0:00:38.9]} 64... Rf1 {[%clk 0:01:41.9]} 65. Rg4 {[%clk 0:00:30.9]}
65... Re1+ {[%clk 0:01:41.6]} 66. Kf4 {[%clk 0:00:31.1]} 66... Rf1+ {[%clk
0:01:40.6]} 67. Kg5 {[%clk 0:00:31.4]} 67... Re1 {[%clk 0:01:39.1]} 68. Kg6
{[%clk 0:00:29.4]} 68... Rf1 {[%clk 0:01:38]} 69. Rg5 {[%clk 0:00:22.2]} 69...
Rf2 {[%clk 0:01:37.1]} 70. Rg1 {[%clk 0:00:20.1]} 70... Rf3 {[%clk 0:01:36.6]}
71. Kg5 {[%clk 0:00:17.9]} 71... Rf2 {[%clk 0:01:35.9]} 72. Kg4 {[%clk
0:00:17.1]} 72... Kf6 {[%clk 0:01:35.4]} 73. Re1 {[%clk 0:00:17.5]} 73... Rg2+
{[%clk 0:01:28.1]} 74. Kf3 {[%clk 0:00:14.8]} 74... Rg7 {[%clk 0:01:25.8]} 75.
Kf4 {[%clk 0:00:14.8]} 75... Ra7 {[%clk 0:01:25.9]} 76. Re4 {[%clk 0:00:12.5]}
76... Rb7 {[%clk 0:01:23.5]} 77. Kg4 {[%clk 0:00:09.4]} 77... Rg7+ {[%clk
0:01:22.3]} 78. Kf4 {[%clk 0:00:08.9]} 78... Rb7 {[%clk 0:01:21.9]} 79. Rd4
{[%clk 0:00:08.6]} 79... Ra7 {[%clk 0:01:19.9]} 80. Rd7 {[%clk 0:00:05.4]} 80...
Ra4+ {[%clk 0:01:19.4]} 81. Kf3 {[%clk 0:00:05.6]} 81... Ra3+ {[%clk 0:01:12]}
82. Ke4 {[%clk 0:00:05.7]} 82... Ra5 {[%clk 0:01:06.6]} 83. Rf7+ {[%clk
0:00:04.2]} 83... Kg5 {[%clk 0:01:05.8]} 84. e7 {[%clk 0:00:04.5]} 84... Ra8
{[%clk 0:01:05]} 85. Rf8 {[%clk 0:00:04.9]} 85... Ra4+ {[%clk 0:01:05]} 86. Kd5
{[%clk 0:00:05]} 86... Ra5+ {[%clk 0:01:05.5]} 87. Kc4 {[%clk 0:00:05.1]} 87...
Rxf5 {[%clk 0:01:04.6]} 88. Rxf5+ {[%clk 0:00:03.8]} 88... Kxf5 {[%clk
0:01:05.5]} 89. e8=Q {[%clk 0:00:04.3]} 89... Kg4 {[%clk 0:01:06.4]} 90. Kd4
{[%clk 0:00:04.4]} 90... Kf4 {[%clk 0:01:07.3]} 91. Kd3 {[%clk 0:00:04.3]} 91...
Kg4 {[%clk 0:01:08.2]} 92. Qf7 {[%clk 0:00:04.6]} 92... Kg3 {[%clk 0:01:09.1]}
93. Ke3 {[%clk 0:00:05.2]} 93... Kg4 {[%clk 0:01:10]} 94. Qg6+ {[%clk
0:00:05.5]} 94... Kh4 {[%clk 0:01:10.2]} 95. Kf3 {[%clk 0:00:05.5]} 95... Kh3
{[%clk 0:01:11.1]} 96. Qh6# {[%clk 0:00:05.9]} 1-0

[Event "*** SCC Grand Prix: Titled Tuesday Blitz"]
[Site "Chess.com"]
[Date "2020.09.08"]
[Round "5"]
[White "GMJustin"]
[Black "GMaka"]
[Result "0-1"]
[WhiteElo "2219"]
[BlackElo "2369"]
[TimeControl "180+1"]
[EndTime "10:57:49 PDT"]
[Termination "GMaka won on time"]

1. d4 {[%clk 0:02:54.6]} 1... Nf6 {[%clk 0:02:59.7]} 2. c4 {[%clk 0:02:53.9]}
2... Nc6 {[%clk 0:03:00]} 3. Nc3 {[%clk 0:02:50.7]} 3... e5 {[%clk 0:03:00.1]}
4. d5 {[%clk 0:02:50.6]} 4... Ne7 {[%clk 0:03:00.6]} 5. h4 {[%clk 0:02:50.4]}
5... h5 {[%clk 0:02:58.5]} 6. Bg5 {[%clk 0:02:39.2]} 6... Nf5 {[%clk 0:02:54.9]}
7. Qd3 {[%clk 0:02:20.2]} 7... g6 {[%clk 0:02:38.4]} 8. Nf3 {[%clk 0:02:04]}
8... d6 {[%clk 0:02:36.8]} 9. e4 {[%clk 0:01:58.6]} 9... Nh6 {[%clk 0:02:36.6]}
10. c5 {[%clk 0:01:49.9]} 10... Be7 {[%clk 0:02:35.3]} 11. cxd6 {[%clk
0:01:42.5]} 11... cxd6 {[%clk 0:02:36.2]} 12. Be2 {[%clk 0:01:39.3]} 12... Nfg4
{[%clk 0:02:34.4]} 13. Qb5+ {[%clk 0:01:27]} 13... Qd7 {[%clk 0:02:30.8]} 14.
Qxd7+ {[%clk 0:01:05.8]} 14... Bxd7 {[%clk 0:02:27.6]} 15. Nb5 {[%clk
0:01:05.7]} 15... Bxb5 {[%clk 0:02:04.4]} 16. Bxb5+ {[%clk 0:01:06.6]} 16... Kd8
{[%clk 0:02:05]} 17. Rc1 {[%clk 0:01:04.8]} 17... f6 {[%clk 0:01:20.1]} 18. Bd2
{[%clk 0:01:02.4]} 18... Nf7 {[%clk 0:01:13.9]} 19. Ke2 {[%clk 0:01:00.2]} 19...
Rc8 {[%clk 0:01:02]} 20. Ba5+ {[%clk 0:00:40.3]} 20... b6 {[%clk 0:01:01.8]} 21.
Bb4 {[%clk 0:00:40.3]} 21... Rc5 {[%clk 0:00:57.2]} 22. Bxc5 {[%clk 0:00:39.8]}
22... dxc5 {[%clk 0:00:57.8]} 23. Nd2 {[%clk 0:00:36.8]} 23... f5 {[%clk
0:00:52.3]} 24. f3 {[%clk 0:00:35.7]} 24... Nf6 {[%clk 0:00:51.7]} 25. b4 {[%clk
0:00:30.3]} 25... fxe4 {[%clk 0:00:47.5]} 26. fxe4 {[%clk 0:00:29.6]} 26... Ng4
{[%clk 0:00:45.5]} 27. Rhf1 {[%clk 0:00:24.8]} 27... Nd6 {[%clk 0:00:35.5]} 28.
Bd3 {[%clk 0:00:24.7]} 28... cxb4 {[%clk 0:00:36]} 29. Rc6 {[%clk 0:00:24.3]}
29... Kd7 {[%clk 0:00:35.7]} 30. Nc4 {[%clk 0:00:23.7]} 30... Nxc4 {[%clk
0:00:24.8]} 31. Bxc4 {[%clk 0:00:23.9]} 31... Rf8 {[%clk 0:00:06.6]} 32. Rxf8
{[%clk 0:00:23]} 32... Bxf8 {[%clk 0:00:07.5]} 33. Rxg6 {[%clk 0:00:22.8]} 33...
Be7 {[%clk 0:00:08.1]} 34. Bb5+ {[%clk 0:00:22.4]} 34... Kd8 {[%clk 0:00:07]}
35. Rg8+ {[%clk 0:00:21.9]} 35... Kc7 {[%clk 0:00:06.1]} 36. Rg7 {[%clk
0:00:21.8]} 36... Kd8 {[%clk 0:00:06.7]} 37. g3 {[%clk 0:00:21.9]} 37... a5
{[%clk 0:00:05.4]} 38. Rg8+ {[%clk 0:00:21.8]} 38... Kc7 {[%clk 0:00:05.5]} 39.
Be8 {[%clk 0:00:21.9]} 39... Kd6 {[%clk 0:00:05.2]} 40. Bxh5 {[%clk 0:00:21.7]}
40... Nf6 {[%clk 0:00:06.1]} 41. Bf3 {[%clk 0:00:20.8]} 41... Kc5 {[%clk
0:00:07]} 42. Kd3 {[%clk 0:00:20.6]} 42... Nxg8 {[%clk 0:00:07.1]} 43. h5 {[%clk
0:00:19.4]} 43... Nf6 {[%clk 0:00:08]} 44. g4 {[%clk 0:00:19.4]} 44... Nh7
{[%clk 0:00:08.5]} 45. Be2 {[%clk 0:00:18.9]} 45... Ng5 {[%clk 0:00:09.4]} 46.
Bd1 {[%clk 0:00:18]} 46... b5 {[%clk 0:00:10.3]} 47. Bc2 {[%clk 0:00:17.2]}
47... Bd6 {[%clk 0:00:11.2]} 48. Bd1 {[%clk 0:00:17.2]} 48... a4 {[%clk
0:00:12.1]} 49. Bc2 {[%clk 0:00:17.1]} 49... Nf3 {[%clk 0:00:12.3]} 50. Bd1
{[%clk 0:00:16.7]} 50... Ng5 {[%clk 0:00:13.2]} 51. Bc2 {[%clk 0:00:16.9]} 51...
Be7 {[%clk 0:00:14.1]} 52. Bd1 {[%clk 0:00:17]} 52... Kd6 {[%clk 0:00:15]} 53.
Bc2 {[%clk 0:00:17]} 53... Nf7 {[%clk 0:00:15.6]} 54. Bd1 {[%clk 0:00:17]} 54...
Bg5 {[%clk 0:00:16.2]} 55. Bc2 {[%clk 0:00:16.6]} 55... Nh6 {[%clk 0:00:16.8]}
56. Bd1 {[%clk 0:00:16.3]} 56... Kc5 {[%clk 0:00:17.4]} 57. Be2 {[%clk
0:00:12.1]} 57... b3 {[%clk 0:00:17.9]} 58. axb3 {[%clk 0:00:11.9]} 58... a3
{[%clk 0:00:18.3]} 59. Kc3 {[%clk 0:00:10.6]} 59... b4+ {[%clk 0:00:18.8]} 60.
Kc2 {[%clk 0:00:10.6]} 60... Kd4 {[%clk 0:00:19.2]} 61. d6 {[%clk 0:00:09.7]}
61... Kxe4 {[%clk 0:00:19.1]} 62. d7 {[%clk 0:00:09.1]} 62... Kf4 {[%clk
0:00:18.8]} 63. Kb1 {[%clk 0:00:05.2]} 63... e4 {[%clk 0:00:18.6]} 64. Bd1
{[%clk 0:00:04.2]} 64... e3 {[%clk 0:00:18.5]} 65. Be2 {[%clk 0:00:03.5]} 65...
Bd8 {[%clk 0:00:18.2]} 66. Bd1 {[%clk 0:00:02.8]} 66... Nf7 {[%clk 0:00:18.3]}
67. Be2 {[%clk 0:00:02.2]} 67... Ng5 {[%clk 0:00:18.8]} 68. Bd1 {[%clk 0:00:02]}
68... Kg3 {[%clk 0:00:19.2]} 69. h6 {[%clk 0:00:01.8]} 69... Kf2 {[%clk
0:00:19.3]} 0-1

[Event "*** SCC Grand Prix: Titled Tuesday Blitz"]
[Site "Chess.com"]
[Date "2020.09.08"]
[Round "5"]
[White "OminousOmen"]
[Black "vugarrasulov"]
[Result "1-0"]
[WhiteElo "2945"]
[BlackElo "2827"]
[TimeControl "180+1"]
[EndTime "10:57:51 PDT"]
[Termination "OminousOmen won on time"]

1. d4 {[%clk 0:03:00.9]} 1... Nf6 {[%clk 0:02:59.7]} 2. c4 {[%clk 0:03:00.9]}
2... e6 {[%clk 0:02:59.9]} 3. g3 {[%clk 0:03:00.8]} 3... c5 {[%clk 0:02:59.5]}
4. Nf3 {[%clk 0:03:01]} 4... d5 {[%clk 0:02:52.9]} 5. cxd5 {[%clk 0:02:58.6]}
5... exd5 {[%clk 0:02:53.8]} 6. Bg2 {[%clk 0:02:59]} 6... Nc6 {[%clk 0:02:54.3]}
7. O-O {[%clk 0:02:59.2]} 7... Be7 {[%clk 0:02:54.7]} 8. b3 {[%clk 0:02:58.8]}
8... O-O {[%clk 0:02:52.4]} 9. dxc5 {[%clk 0:02:57.2]} 9... Ne4 {[%clk
0:02:47.3]} 10. Bb2 {[%clk 0:02:55.7]} 10... Bxc5 {[%clk 0:02:46.4]} 11. e3
{[%clk 0:02:52.5]} 11... Bg4 {[%clk 0:02:37.7]} 12. Nc3 {[%clk 0:02:52.7]} 12...
Nxc3 {[%clk 0:02:32.1]} 13. Bxc3 {[%clk 0:02:53.6]} 13... Rc8 {[%clk 0:02:29.2]}
14. h3 {[%clk 0:02:41.8]} 14... Bf5 {[%clk 0:02:23.5]} 15. Nh4 {[%clk
0:02:27.2]} 15... Be6 {[%clk 0:02:21.8]} 16. Qh5 {[%clk 0:02:27.5]} 16... g6
{[%clk 0:02:06.4]} 17. Qh6 {[%clk 0:02:18.4]} 17... d4 {[%clk 0:02:06.7]} 18.
Rad1 {[%clk 0:01:32.6]} 18... dxc3 {[%clk 0:02:00.9]} 19. Rxd8 {[%clk
0:01:33.5]} 19... Rfxd8 {[%clk 0:02:01.4]} 20. Rc1 {[%clk 0:01:33.7]} 20... Bf8
{[%clk 0:01:57]} 21. Qg5 {[%clk 0:01:34.3]} 21... Bg7 {[%clk 0:01:56.5]} 22. Qb5
{[%clk 0:01:34.9]} 22... Ne5 {[%clk 0:01:44.9]} 23. Nf3 {[%clk 0:01:21.2]} 23...
Nd3 {[%clk 0:01:35.1]} 24. Rc2 {[%clk 0:01:21.5]} 24... a6 {[%clk 0:01:28.7]}
25. Qa5 {[%clk 0:01:21.2]} 25... Bd5 {[%clk 0:01:18.5]} 26. Nd4 {[%clk
0:00:40.2]} 26... Bxg2 {[%clk 0:01:08.2]} 27. Rxc3 {[%clk 0:00:40.2]} 27... Be4
{[%clk 0:00:52.4]} 28. f3 {[%clk 0:00:36]} 28... Rxc3 {[%clk 0:00:43.7]} 29.
Qxd8+ {[%clk 0:00:34.6]} 29... Bf8 {[%clk 0:00:43.7]} 30. fxe4 {[%clk
0:00:35.2]} 30... Rc1+ {[%clk 0:00:32.4]} 31. Kg2 {[%clk 0:00:35.2]} 31... Ra1
{[%clk 0:00:33.3]} 32. Ne6 {[%clk 0:00:22.4]} 32... Rxa2+ {[%clk 0:00:19.5]} 33.
Kf1 {[%clk 0:00:22.4]} 33... Ra1+ {[%clk 0:00:19.4]} 34. Ke2 {[%clk 0:00:20.9]}
34... Nc1+ {[%clk 0:00:19.4]} 35. Kf3 {[%clk 0:00:21.6]} 35... fxe6 {[%clk
0:00:19.3]} 36. Qf6 {[%clk 0:00:22.2]} 36... Ra2 {[%clk 0:00:12]} 37. Qxe6+
{[%clk 0:00:22.5]} 37... Kg7 {[%clk 0:00:12.5]} 38. e5 {[%clk 0:00:17.2]} 38...
Rc2 {[%clk 0:00:05.8]} 39. Qd7+ {[%clk 0:00:14.5]} 39... Kh6 {[%clk 0:00:05.8]}
40. e6 {[%clk 0:00:11.8]} 40... Nxb3 {[%clk 0:00:04.6]} 41. e7 {[%clk
0:00:09.5]} 41... Bxe7 {[%clk 0:00:03.9]} 42. Qxe7 {[%clk 0:00:09.8]} 42... Nd2+
{[%clk 0:00:04.3]} 43. Ke2 {[%clk 0:00:08]} 43... Nb3+ {[%clk 0:00:03.6]} 44.
Kd3 {[%clk 0:00:07.6]} 44... Rc6 {[%clk 0:00:04.1]} 45. Qf8+ {[%clk 0:00:07.6]}
45... Kh5 {[%clk 0:00:03.4]} 46. g4+ {[%clk 0:00:07.1]} 46... Kh4 {[%clk
0:00:03.3]} 47. Qh6+ {[%clk 0:00:07]} 47... Kg3 {[%clk 0:00:03.5]} 48. Qxh7
{[%clk 0:00:07]} 48... Nc5+ {[%clk 0:00:03.1]} 49. Ke2 {[%clk 0:00:07.7]} 49...
Ne4 {[%clk 0:00:02.7]} 50. Qxb7 {[%clk 0:00:05.7]} 50... Rc2+ {[%clk 0:00:03.2]}
51. Kd1 {[%clk 0:00:05.4]} 51... Rd2+ {[%clk 0:00:03.1]} 52. Kc1 {[%clk
0:00:06]} 52... Kf3 {[%clk 0:00:03.7]} 53. Qxa6 {[%clk 0:00:06.1]} 53... Re2
{[%clk 0:00:03.2]} 54. Qxg6 {[%clk 0:00:04.8]} 54... Rxe3 {[%clk 0:00:03.7]} 55.
h4 {[%clk 0:00:05.4]} 55... Rc3+ {[%clk 0:00:02.1]} 56. Kb2 {[%clk 0:00:06]}
56... Rc5 {[%clk 0:00:02.5]} 57. g5 {[%clk 0:00:04.9]} 57... Ke3 {[%clk
0:00:03.4]} 58. Qe8 {[%clk 0:00:03.8]} 58... Kd3 {[%clk 0:00:03.2]} 59. g6
{[%clk 0:00:03.7]} 59... Rc2+ {[%clk 0:00:02]} 60. Ka3 {[%clk 0:00:04.4]} 60...
Rc3+ {[%clk 0:00:02.1]} 61. Kb4 {[%clk 0:00:04.9]} 61... Rc4+ {[%clk 0:00:02.7]}
62. Ka5 {[%clk 0:00:05.5]} 62... Rc5+ {[%clk 0:00:03.2]} 63. Kb6 {[%clk
0:00:05.9]} 1-0

[Event "*** SCC Grand Prix: Titled Tuesday Blitz"]
[Site "Chess.com"]
[Date "2020.09.08"]
[Round "5"]
[White "1stSecond"]
[Black "BUITRONGHAO"]
[Result "1-0"]
[WhiteElo "2796"]
[BlackElo "2566"]
[TimeControl "180+1"]
[EndTime "10:57:51 PDT"]
[Termination "1stSecond won on time"]

1. c4 {[%clk 0:03:00.4]} 1... c6 {[%clk 0:02:59.5]} 2. Nf3 {[%clk 0:02:58.7]}
2... d5 {[%clk 0:02:59.9]} 3. b3 {[%clk 0:02:59.3]} 3... Nf6 {[%clk 0:02:56.6]}
4. Bb2 {[%clk 0:02:59.6]} 4... Bf5 {[%clk 0:02:56.8]} 5. e3 {[%clk 0:02:56.2]}
5... e6 {[%clk 0:02:57.1]} 6. Be2 {[%clk 0:02:53.3]} 6... Be7 {[%clk 0:02:57.1]}
7. Nh4 {[%clk 0:02:52.1]} 7... Bg6 {[%clk 0:02:55]} 8. Nxg6 {[%clk 0:02:50]}
8... hxg6 {[%clk 0:02:55.9]} 9. O-O {[%clk 0:02:48.2]} 9... Nbd7 {[%clk
0:02:49.6]} 10. d4 {[%clk 0:02:44.9]} 10... Ne4 {[%clk 0:02:46.6]} 11. f3 {[%clk
0:02:43.3]} 11... Bg5 {[%clk 0:02:25.2]} 12. Qd3 {[%clk 0:02:35.6]} 12... Qc7
{[%clk 0:02:16.6]} 13. f4 {[%clk 0:02:35.6]} 13... Be7 {[%clk 0:02:11.4]} 14.
Nd2 {[%clk 0:02:35.2]} 14... Nxd2 {[%clk 0:02:04.8]} 15. Qxd2 {[%clk 0:02:34.9]}
15... Nf6 {[%clk 0:02:05.3]} 16. Bf3 {[%clk 0:02:27]} 16... g5 {[%clk
0:01:48.9]} 17. g3 {[%clk 0:02:26.2]} 17... gxf4 {[%clk 0:01:47.4]} 18. exf4
{[%clk 0:02:25.2]} 18... g6 {[%clk 0:01:40.9]} 19. Qe2 {[%clk 0:02:21.8]} 19...
Qb6 {[%clk 0:01:38.6]} 20. Rac1 {[%clk 0:02:19]} 20... Rd8 {[%clk 0:01:23.7]}
21. Rfd1 {[%clk 0:02:17.1]} 21... Qc7 {[%clk 0:00:55.8]} 22. Kg2 {[%clk
0:02:17.4]} 22... Qa5 {[%clk 0:00:49.7]} 23. Bc3 {[%clk 0:02:16.4]} 23... Bb4
{[%clk 0:00:45.2]} 24. Bxb4 {[%clk 0:01:59.8]} 24... Qxb4 {[%clk 0:00:46.1]} 25.
Qe5 {[%clk 0:01:59.3]} 25... Qe7 {[%clk 0:00:42.1]} 26. c5 {[%clk 0:01:44.8]}
26... Rh7 {[%clk 0:00:36.4]} 27. b4 {[%clk 0:01:42.1]} 27... Nd7 {[%clk
0:00:32.9]} 28. Qe2 {[%clk 0:01:42.5]} 28... g5 {[%clk 0:00:19.5]} 29. f5 {[%clk
0:01:25.4]} 29... exf5 {[%clk 0:00:16.3]} 30. Qd3 {[%clk 0:01:24.9]} 30... Qf6
{[%clk 0:00:15.9]} 31. Bg4 {[%clk 0:01:16.7]} 31... Kf8 {[%clk 0:00:11.5]} 32.
Qxf5 {[%clk 0:01:11.4]} 32... Qxf5 {[%clk 0:00:08]} 33. Bxf5 {[%clk 0:01:12.3]}
33... Rh6 {[%clk 0:00:08.6]} 34. Rb1 {[%clk 0:01:06.8]} 34... a6 {[%clk
0:00:08.6]} 35. a4 {[%clk 0:01:06.3]} 35... Nf6 {[%clk 0:00:06.9]} 36. Re1
{[%clk 0:01:06.6]} 36... Ne4 {[%clk 0:00:05.1]} 37. Bxe4 {[%clk 0:01:02.5]}
37... dxe4 {[%clk 0:00:05.5]} 38. Rxe4 {[%clk 0:01:03.2]} 38... Rd5 {[%clk
0:00:04.3]} 39. g4 {[%clk 0:00:57.1]} 39... Re6 {[%clk 0:00:03]} 40. Kf3 {[%clk
0:00:55.4]} 40... Rf6+ {[%clk 0:00:03.3]} 41. Kg3 {[%clk 0:00:50.3]} 41... Kg7
{[%clk 0:00:03.8]} 42. b5 {[%clk 0:00:47.7]} 42... axb5 {[%clk 0:00:04]} 43.
axb5 {[%clk 0:00:48.6]} 43... Rd7 {[%clk 0:00:04.6]} 44. b6 {[%clk 0:00:41]}
44... Rd8 {[%clk 0:00:03.7]} 45. Ra1 {[%clk 0:00:40.5]} 45... Rd7 {[%clk
0:00:04.2]} 46. Ra8 {[%clk 0:00:40]} 46... Re6 {[%clk 0:00:04.3]} 47. Rxe6
{[%clk 0:00:37.8]} 47... fxe6 {[%clk 0:00:05.2]} 48. Rc8 {[%clk 0:00:38]} 48...
Kf6 {[%clk 0:00:05.7]} 49. Rc7 {[%clk 0:00:38.9]} 49... Rxd4 {[%clk 0:00:06.3]}
50. Rxb7 {[%clk 0:00:39.2]} 50... Rd3+ {[%clk 0:00:07.2]} 51. Kf2 {[%clk
0:00:39.5]} 51... Rc3 {[%clk 0:00:08.1]} 52. Rb8 {[%clk 0:00:06.7]} 52... Rxc5
{[%clk 0:00:08.2]} 53. Ke3 {[%clk 0:00:07.6]} 53... Rb5 {[%clk 0:00:07.9]} 54.
Kd4 {[%clk 0:00:07.7]} 54... Ke7 {[%clk 0:00:07.6]} 55. b7 {[%clk 0:00:06.6]}
55... Kd7 {[%clk 0:00:08.1]} 56. Rg8 {[%clk 0:00:06.2]} 56... Rxb7 {[%clk
0:00:07.8]} 57. Rg7+ {[%clk 0:00:06.6]} 57... Kc8 {[%clk 0:00:07.5]} 58. Rxg5
{[%clk 0:00:07.5]} 58... Kc7 {[%clk 0:00:08]} 59. Rg7+ {[%clk 0:00:07]} 59...
Kc8 {[%clk 0:00:08.3]} 60. Rxb7 {[%clk 0:00:07.3]} 60... Kxb7 {[%clk 0:00:08.5]}
61. g5 {[%clk 0:00:07.4]} 61... Kc7 {[%clk 0:00:05.3]} 62. g6 {[%clk 0:00:07.6]}
62... Kd6 {[%clk 0:00:05.9]} 63. g7 {[%clk 0:00:08]} 63... e5+ {[%clk
0:00:06.5]} 64. Ke4 {[%clk 0:00:08.2]} 1-0